bitfinex/quotes_BTCUSD_20250221
["timestamp","ask_amount","ask_price","bid_price","bid_amount"]
[1740163473098,0.000851,96943.0,96942.0,4.8626452]
[1740163473745,0.000851,96943.0,96942.0,4.8826452]
[1740163475050,0.000851,96943.0,96942.0,5.0326452]
[1740163475257,0.000851,96943.0,96942.0,5.0526452]
[1740163476267,0.000851,96943.0,96942.0,5.06034525]
[1740163477322,0.000851,96943.0,96942.0,5.08114102]
[1740163477658,0.3204996,96983.0,96943.0,0.48237085]
[1740163477898,0.3204996,96983.0,96943.0,6.225198]
[1740163478110,0.3204996,96983.0,96966.0,0.154693]
[1740163478308,0.3204996,96983.0,96966.0,0.38043869]
[1740163478782,0.3204996,96983.0,96966.0,5.18532769]
[1740163479145,0.3204996,96983.0,96966.0,5.19528046]
[1740163479384,0.3204996,97005.0,96991.0,0.154653]
[1740163479624,0.3204996,97005.0,96991.0,0.25729869]
[1740163479851,0.00098049,96992.0,96991.0,0.25729869]
[1740163480604,0.00098049,96992.0,96991.0,0.33939869]
[1740163481962,0.00098049,96992.0,96991.0,0.34439869]
[1740163482108,0.00098049,96992.0,96991.0,0.11264569]
[1740163482310,0.00098049,96992.0,96991.0,0.10764569]
[1740163483130,0.00098049,96992.0,96991.0,0.11264569]
[1740163483331,0.00098049,96992.0,96991.0,0.10764569]
[1740163484102,0.00098049,96992.0,96991.0,0.26229869]
[1740163484550,0.00098049,96992.0,96991.0,0.10764569]
[1740163484757,0.00098049,96992.0,96991.0,0.11264569]
[1740163485459,0.00098049,96992.0,96991.0,0.13371464]
[1740163488040,0.15563149,96992.0,96991.0,0.13371464]
[1740163488285,0.00098049,96992.0,96991.0,0.13371464]
[1740163490564,0.32148009,96992.0,96991.0,0.13371464]
[1740163492267,0.32148009,96992.0,96991.0,0.28836764]
[1740163492445,0.32148009,96992.0,96991.0,0.13371464]
[1740163494124,0.32148009,96992.0,96991.0,0.11264569]
[1740163494540,0.62613109,96992.0,96991.0,0.01]
[1740163495102,0.70413109,96992.0,96991.0,0.01]
[1740163495478,0.54948009,96992.0,96963.0,0.01021078]
[1740163495701,0.154686,96971.0,96965.0,0.10264569]
[1740163495936,0.3204996,96970.0,96965.0,0.10264569]
[1740163496117,0.4751866,96970.0,96965.0,0.10264569]
[1740163496329,0.154689,96969.0,96965.0,0.10264569]
[1740163496547,0.15469,96969.0,96965.0,0.10264569]
[1740163496783,0.4751866,96970.0,96965.0,0.10264569]
[1740163497000,0.154689,96969.0,96965.0,0.10864569]
[1740163497218,0.154693,96966.0,96965.0,0.10264569]
[1740163497417,0.154693,96966.0,96965.0,0.10864569]
[1740163497803,0.154693,96966.0,96965.0,0.11564569]
[1740163498205,0.154693,96966.0,96965.0,0.10864569]
[1740163498568,0.154693,96966.0,96965.0,0.10564569]
[1740163498775,0.4751926,96966.0,96965.0,0.003]
[1740163498972,0.4751926,96966.0,96965.0,0.009]
[1740163499175,0.6251926,96966.0,96965.0,0.003]
[1740163499393,0.6251926,96966.0,96965.0,0.006]
[1740163500531,0.63527991,96966.0,96965.0,0.006]
[1740163500746,0.63527991,96966.0,96965.0,0.003]
[1740163501749,0.63527991,96966.0,96933.0,0.08688]
[1740163501750,0.15,96965.0,96933.0,0.08688]
[1740163502014,0.163622,96950.0,96936.0,0.10264569]
[1740163502242,0.154735,96940.0,96936.0,0.10264569]
[1740163502478,0.4752346,96940.0,96936.0,0.10264569]
[1740163502671,0.3204996,96940.0,96936.0,0.10264569]
[1740163502908,0.154739,96937.0,96936.0,0.10264569]
[1740163503192,0.4752386,96937.0,96936.0,0.10264569]
[1740163503411,0.4752386,96937.0,96936.0,0.10307981]
[1740163503856,0.4752386,96937.0,96936.0,0.00043412]
[1740163504909,0.4752386,96937.0,96936.0,0.00343412]
[1740163505113,0.4752386,96937.0,96936.0,0.00843412]
[1740163505523,0.6252386,96937.0,96936.0,0.00043412]
[1740163505748,0.6252386,96937.0,96936.0,0.00243412]
[1740163506745,0.6252386,96937.0,96936.0,0.00343412]
[1740163508924,0.7047386,96937.0,96936.0,0.00343412]
[1740163509953,0.7047386,96937.0,96936.0,0.00043412]
[1740163511254,0.7047386,96937.0,96936.0,0.00143412]
[1740163511722,0.85368429,96937.0,96936.0,0.00143412]
[1740163512857,0.87468251,96937.0,96936.0,0.00143412]
[1740163513297,0.87468251,96937.0,96936.0,1.2e-07]
[1740163515615,0.87468251,96937.0,96936.0,0.02075987]
[1740163515798,0.75749597,96937.0,96936.0,0.02075987]
[1740163516986,0.75849597,96937.0,96936.0,1.2e-07]
[1740163517372,0.75749597,96937.0,96936.0,1.2e-07]
[1740163517572,0.154773,96916.0,96915.0,0.0801]
[1740163517776,0.4752726,96916.0,96915.0,0.18274569]
[1740163517979,0.4752726,96916.0,96915.0,0.10264569]
[1740163518178,0.154774,96915.0,96914.0,0.025]
[1740163518450,0.4752736,96915.0,96914.0,0.025]
[1740163519950,0.4752736,96915.0,96914.0,0.026]
[1740163520500,0.4752736,96915.0,96914.0,0.028]
[1740163528005,0.48173128,96915.0,96914.0,0.028]
[1740163529673,0.4752736,96915.0,96914.0,0.028]
[1740163532019,0.3204996,96915.0,96914.0,0.21104569]
[1740163533297,0.3204996,96915.0,96914.0,0.20904569]
[1740163533543,0.4752736,96915.0,96914.0,0.21004569]
[1740163533697,0.4752736,96915.0,96914.0,0.20904569]
[1740163533900,0.3204996,96915.0,96914.0,0.20904569]
[1740163534305,0.3204996,96934.0,96915.0,0.0499]
[1740163534504,0.3204996,96934.0,96925.0,0.0808]
[1740163534730,0.3204996,96934.0,96927.0,0.0499]
[1740163534973,0.3204996,96934.0,96928.0,0.10264569]
[1740163535386,0.4752436,96934.0,96928.0,0.11311545]
[1740163535956,0.3204996,96934.0,96928.0,0.11311545]
[1740163536162,0.3204996,96934.0,96930.0,0.206334]
[1740163536330,0.001,96934.0,96931.0,0.10264569]
[1740163536925,0.002,96934.0,96931.0,0.10264569]
[1740163537153,0.002,96934.0,96932.0,0.081]
[1740163537372,0.002,96934.0,96933.0,4.44884569]
[1740163538995,0.001,96934.0,96933.0,4.44884569]
[1740163539198,0.0008505,96936.0,96933.0,4.44884569]
[1740163539409,0.0008505,96936.0,96935.0,0.18496419]
[1740163540415,0.0008505,96936.0,96935.0,0.88496419]
[1740163540789,0.0008505,96936.0,96935.0,0.18496419]
[1740163541416,0.0008505,96936.0,96935.0,0.19196419]
[1740163541823,0.0008505,96936.0,96935.0,0.19896419]
[1740163542227,0.0008505,96936.0,96935.0,0.19196419]
[1740163542436,0.0008505,96936.0,96935.0,0.10964569]
[1740163543003,0.0008505,96936.0,96935.0,0.11664569]
[1740163543322,0.0008505,96936.0,96935.0,0.10964569]
[1740163543761,0.3213501,96936.0,96935.0,0.10964569]
[1740163543957,0.3213501,96936.0,96935.0,0.11664569]
[1740163551324,0.3213501,96936.0,96935.0,0.10964569]
[1740163551928,0.3213501,96936.0,96935.0,0.10264569]
[1740163552081,0.3213501,96936.0,96935.0,0.10964569]
[1740163552287,0.3213501,96936.0,96935.0,0.11664569]
[1740163552490,0.3213501,96936.0,96935.0,0.10964569]
[1740163552864,0.3213501,96936.0,96935.0,0.11664569]
[1740163555523,0.3213501,96936.0,96935.0,0.014]
[1740163556549,0.3213501,96936.0,96935.0,0.007]
[1740163556732,0.3213501,96936.0,96935.0,0.11564569]
[1740163557602,0.3213501,96936.0,96935.0,0.10864569]
[1740163558718,0.3213501,96936.0,96935.0,0.10964569]
[1740163558952,0.3213501,96936.0,96935.0,0.11664569]
[1740163559418,0.3213501,96936.0,96935.0,0.10964569]
[1740163559651,0.3213501,96936.0,96935.0,0.11664569]
[1740163561012,0.3213501,96936.0,96935.0,0.27138769]
[1740163561214,0.3213501,96936.0,96935.0,0.35158769]
[1740163562269,0.3213501,96936.0,96935.0,0.19684569]
[1740163562466,0.4760911,96936.0,96935.0,0.11664569]
[1740163562819,0.3213501,96936.0,96935.0,0.11664569]
[1740163566976,0.3213501,96936.0,96935.0,0.27138769]
[1740163567602,0.3213501,96936.0,96935.0,0.11664569]
[1740163571414,0.4760911,96936.0,96935.0,0.014]
[1740163571622,0.3213501,96936.0,96935.0,0.014]
[1740163571844,0.4760911,96936.0,96935.0,0.014]
[1740163572654,0.3213501,96936.0,96935.0,0.11664569]
[1740163573826,0.3213501,96936.0,96935.0,0.10964569]
[1740163574045,0.3213501,96936.0,96935.0,0.18404569]
[1740163574250,0.3213501,96936.0,96935.0,0.18804569]
[1740163574674,0.3213501,96936.0,96935.0,0.11164569]
[1740163575904,0.3213501,96936.0,96935.0,5.34621453]
[1740163576132,0.0008505,96936.0,96935.0,5.39437669]
[1740163576372,0.0008505,96936.0,96935.0,0.60402854]
[1740163576601,0.0008505,96936.0,96935.0,4.61682854]
[1740163576843,0.0008505,96936.0,96935.0,5.34505841]
[1740163577077,0.0008505,96936.0,96935.0,5.34905841]
[1740163577304,0.0008505,96936.0,96935.0,5.34005841]
[1740163577505,0.0008505,96936.0,96935.0,5.34405841]
[1740163577772,0.0008505,96936.0,96935.0,5.35105841]
[1740163578002,0.0008505,96936.0,96935.0,5.34405841]
[1740163578454,0.0008505,96936.0,96935.0,5.34705841]
[1740163578692,0.0008505,96936.0,96935.0,5.34005841]
[1740163578914,0.0008505,96936.0,96935.0,5.34705841]
[1740163579820,0.0008505,96936.0,96935.0,5.35405841]
[1740163580298,0.0008505,96936.0,96935.0,5.34705841]
[1740163580536,0.0008505,96936.0,96935.0,5.36105841]
[1740163580744,0.0008505,96936.0,96935.0,5.34705841]
[1740163580991,0.0008505,96936.0,96935.0,5.33065841]
[1740163581237,0.0008505,96936.0,96935.0,1.72458733]
[1740163581488,0.0008505,96936.0,96935.0,0.96298733]
[1740163581721,0.0008505,96936.0,96935.0,1.11772933]
[1740163581949,0.0008505,96936.0,96935.0,5.22102933]
[1740163582183,0.0008505,96936.0,96935.0,5.22802933]
[1740163582631,0.0008505,96936.0,96935.0,1.63282933]
[1740163582846,0.0008505,96936.0,96935.0,1.62342933]
[1740163583968,0.0008505,96936.0,96935.0,1.63042933]
[1740163586887,0.0008505,96936.0,96935.0,1.11532933]
[1740163587091,0.0008505,96936.0,96935.0,1.29852933]
[1740163587726,0.0008505,96936.0,96935.0,1.31307018]
[1740163591874,0.0008505,96936.0,96935.0,1.33307018]
[1740163593710,0.0008505,96936.0,96935.0,1.31307018]
[1740163593910,0.0008505,96936.0,96935.0,1.32247018]
[1740163594703,0.0008505,96936.0,96935.0,1.31307018]
[1740163594940,0.0008505,96936.0,96935.0,0.91538733]
[1740163595159,0.0008505,96936.0,96935.0,1.07012933]
[1740163595631,0.1555915,96936.0,96935.0,0.83688733]
[1740163595860,0.1555915,96936.0,96935.0,0.11664569]
[1740163596560,0.0008505,96936.0,96914.0,0.026701]
[1740163596788,0.0008505,96936.0,96935.0,0.004]
[1740163597046,0.1555915,96936.0,96935.0,0.008]
[1740163597283,0.1555915,96936.0,96935.0,0.004]
[1740163598196,0.47732925,96936.0,96935.0,0.004]
[1740163598422,0.4760911,96936.0,96935.0,0.004]
[1740163599442,0.7029911,96936.0,96935.0,0.007]
[1740163599933,0.7029911,96936.0,96935.0,0.01]
[1740163600173,0.15,96935.0,96914.0,0.026701]
[1740163600414,0.7029911,96936.0,96914.0,0.12934669]
[1740163600415,0.154774,96915.0,96914.0,0.12934669]
[1740163600641,0.4752736,96915.0,96914.0,0.12934669]
[1740163602955,0.4752736,96915.0,96914.0,0.13634669]
[1740163603187,0.4752736,96915.0,96914.0,0.14334669]
[1740163604141,0.3204996,96915.0,96914.0,0.14334669]
[1740163611855,0.3204996,96915.0,96914.0,0.29812269]
[1740163612256,0.206325,96934.0,96914.0,0.29812269]
[1740163612257,0.154749,96931.0,96914.0,0.14334669]
[1740163612482,0.154749,96931.0,96916.0,0.206363]
[1740163612685,0.154749,96931.0,96917.0,0.10264569]
[1740163613140,0.154749,96931.0,96918.0,0.154769]
[1740163613372,0.206325,96934.0,96919.0,0.25741269]
[1740163613850,0.154747,96932.0,96919.0,0.25741269]
[1740163614564,0.163622,96930.0,96919.0,0.10264569]
[1740163614825,0.206352,96922.0,96919.0,0.10264569]
[1740163615072,0.163622,96930.0,96919.0,0.10264569]
[1740163615307,0.154764,96922.0,96919.0,0.10264569]
[1740163615754,0.15476,96924.0,96919.0,0.10264569]
[1740163615990,0.154762,96923.0,96919.0,0.10564569]
[1740163616240,0.154764,96922.0,96919.0,0.10464569]
[1740163616484,0.154764,96922.0,96919.0,0.10264569]
[1740163616711,0.154765,96921.0,96919.0,0.11264569]
[1740163616965,0.154765,96921.0,96919.0,0.10764569]
[1740163617209,0.163622,96930.0,96919.0,0.11164569]
[1740163617419,0.163622,96930.0,96919.0,0.10764569]
[1740163617599,0.154761,96924.0,96919.0,0.10764569]
[1740163617751,0.163622,96930.0,96919.0,0.10764569]
[1740163617956,0.15476,96925.0,96919.0,0.10764569]
[1740163618186,0.3204996,96924.0,96919.0,0.10764569]
[1740163618388,0.3204996,96924.0,96919.0,0.10264569]
[1740163618589,0.4752606,96924.0,96919.0,0.10264569]
[1740163618821,0.4752606,96924.0,96919.0,0.10764569]
[1740163619243,0.3204996,96924.0,96919.0,0.10764569]
[1740163619444,0.3204996,96924.0,96919.0,0.10664569]
[1740163619651,0.4752596,96924.0,96919.0,0.10664569]
[1740163619854,0.4752596,96924.0,96919.0,0.11064569]
[1740163620097,0.3204996,96924.0,96919.0,0.11064569]
[1740163620333,0.154766,96920.0,96919.0,0.11064569]
[1740163620544,0.154766,96920.0,96919.0,0.008]
[1740163621495,0.149766,96920.0,96919.0,0.004]
[1740163621862,0.149766,96920.0,96919.0,0.009]
[1740163622040,0.149766,96920.0,96919.0,0.005]
[1740163622447,0.149766,96920.0,96919.0,0.01]
[1740163623734,0.3204996,96924.0,96919.0,0.01]
[1740163623944,0.3204996,96924.0,96920.0,0.10264569]
[1740163624187,0.3204996,96923.0,96920.0,0.10264569]
[1740163624651,0.154763,96922.0,96920.0,0.10264569]
[1740163624872,0.154765,96921.0,96920.0,0.10264569]
[1740163626909,0.154765,96921.0,96920.0,0.11264569]
[1740163629952,0.4752646,96921.0,96920.0,0.11264569]
[1740163630179,0.3204996,96921.0,96920.0,0.11264569]
[1740163630808,0.3204996,96921.0,96920.0,5.15323874]
[1740163631017,0.3204996,96921.0,96920.0,0.74961169]
[1740163631229,0.3213501,96921.0,96920.0,0.65551169]
[1740163631437,0.3213501,96921.0,96920.0,0.42156626]
[1740163631639,0.3213501,96921.0,96920.0,0.55023226]
[1740163631849,0.3213501,96921.0,96920.0,0.54523226]
[1740163632051,0.3213501,96921.0,96920.0,0.55023226]
[1740163632318,0.3213501,96921.0,96920.0,0.54523226]
[1740163632548,0.3213501,96921.0,96920.0,0.54023226]
[1740163632804,0.3213501,96921.0,96920.0,0.54523226]
[1740163632972,0.3213501,96921.0,96920.0,1.25023226]
[1740163633414,0.3213501,96921.0,96920.0,1.24523226]
[1740163633620,0.3213501,96921.0,96920.0,1.29473226]
[1740163633754,0.3213501,96921.0,96920.0,1.44973226]
[1740163633755,0.0008505,96921.0,96920.0,1.44973226]
[1740163634160,0.0008505,96921.0,96920.0,1.45673226]
[1740163634361,0.0008505,96921.0,96920.0,1.45173226]
[1740163634609,0.0008505,96921.0,96920.0,1.47173226]
[1740163634815,0.0008505,96921.0,96920.0,1.54345747]
[1740163635019,0.0008505,96921.0,96920.0,1.64670257]
[1740163635217,0.0008505,96921.0,96920.0,1.64170257]
[1740163635433,0.0008505,96921.0,96920.0,1.65731967]
[1740163635861,0.0008505,96921.0,96920.0,1.66431967]
[1740163636069,0.0008505,96921.0,96920.0,1.65031967]
[1740163636214,0.0008505,96921.0,96920.0,1.65731967]
[1740163636420,0.0008505,96921.0,96920.0,1.66431967]
[1740163637019,0.0008505,96921.0,96920.0,1.67131967]
[1740163637449,0.0008505,96921.0,96920.0,1.66431967]
[1740163637881,0.0008505,96921.0,96920.0,1.67131967]
[1740163639546,0.0008505,96921.0,96920.0,1.59395446]
[1740163639750,0.0008505,96921.0,96920.0,1.33443836]
[1740163640491,0.0008505,96921.0,96920.0,1.16517616]
[1740163640698,0.0008505,96921.0,96920.0,1.11247616]
[1740163640902,0.0008505,96921.0,96920.0,1.09387616]
[1740163641350,0.0008505,96921.0,96920.0,0.99945559]
[1740163641556,0.0008505,96921.0,96920.0,0.87825559]
[1740163641784,0.0008505,96921.0,96920.0,0.86425559]
[1740163642210,0.4761151,96921.0,96920.0,0.86425559]
[1740163642418,0.4761151,96921.0,96920.0,0.85725559]
[1740163642602,0.3213501,96921.0,96920.0,0.86425559]
[1740163643064,0.3213501,96921.0,96920.0,0.10264569]
[1740163643273,0.3213501,96921.0,96920.0,0.10364569]
[1740163643485,0.3213501,96921.0,96920.0,0.10964569]
[1740163643697,0.3213501,96921.0,96920.0,0.11064569]
[1740163644121,0.3213501,96921.0,96920.0,0.10364569]
[1740163644330,0.3213501,96921.0,96920.0,0.10464569]
[1740163646112,0.3213501,96921.0,96920.0,0.10364569]
[1740163646293,0.3213501,96921.0,96920.0,0.10464569]
[1740163646492,0.3213501,96921.0,96920.0,0.10364569]
[1740163646866,0.3213501,96921.0,96920.0,0.10864569]
[1740163647240,0.3213501,96921.0,96920.0,0.10764569]
[1740163647692,0.3213501,96921.0,96920.0,0.11264569]
[1740163648472,0.4761151,96921.0,96920.0,0.11264569]
[1740163650998,0.4761151,96921.0,96920.0,0.01]
[1740163651212,0.5242151,96921.0,96920.0,0.01]
[1740163652476,0.5242151,96921.0,96920.0,0.005]
[1740163652930,0.5242151,96921.0,96911.0,0.0149416]
[1740163652931,0.154774,96915.0,96911.0,0.0149416]
[1740163655363,0.154774,96915.0,96914.0,0.027701]
[1740163656334,0.3213501,96921.0,96914.0,0.13034669]
[1740163656583,0.3213501,96921.0,96915.0,0.10264569]
[1740163657259,0.3213501,96921.0,96916.0,0.00123809]
[1740163657469,0.3213501,96921.0,96917.0,0.10264569]
[1740163658329,0.3213501,96921.0,96918.0,0.20636]
[1740163658451,0.3213501,96921.0,96920.0,0.10264569]
[1740163658877,0.0008505,96921.0,96920.0,0.10264569]
[1740163659655,0.0018505,96921.0,96920.0,0.10464569]
[1740163660055,0.0008505,96921.0,96920.0,0.10464569]
[1740163660346,0.0008505,96921.0,96920.0,0.11064569]
[1740163660550,0.0008505,96921.0,96920.0,0.10564569]
[1740163661788,0.0008505,96921.0,96920.0,0.25941169]
[1740163661988,0.0008505,96921.0,96920.0,0.10464569]
[1740163662139,0.0008505,96921.0,96920.0,0.10664569]
[1740163662538,0.0008505,96921.0,96920.0,0.10464569]
[1740163662878,0.0008505,96921.0,96920.0,0.10964569]
[1740163663078,0.0008505,96921.0,96920.0,0.26441169]
[1740163663278,0.0008505,96921.0,96920.0,0.26941169]
[1740163663636,0.0008505,96921.0,96920.0,0.81464569]
[1740163665365,0.0008505,96921.0,96920.0,0.96941169]
[1740163665990,0.0008505,96921.0,96920.0,0.81464569]
[1740163666613,0.1556155,96921.0,96920.0,0.81464569]
[1740163667405,0.0008505,96921.0,96920.0,0.81464569]
[1740163667603,0.0008505,96921.0,96920.0,0.11464569]
[1740163667807,0.0008505,96921.0,96920.0,0.10964569]
[1740163668041,0.0008505,96921.0,96920.0,0.10564569]
[1740163668252,0.1556155,96921.0,96920.0,0.10564569]
[1740163668478,0.1556155,96921.0,96920.0,0.10864569]
[1740163668684,0.4761151,96921.0,96920.0,0.10864569]
[1740163669074,0.48149607,96921.0,96920.0,0.10864569]
[1740163669195,0.4761151,96921.0,96920.0,0.10864569]
[1740163669605,0.4761151,96921.0,96920.0,0.10564569]
[1740163669807,0.4761151,96921.0,96920.0,0.10464569]
[1740163671796,0.4761151,96921.0,96920.0,0.10664569]
[1740163672009,0.3213501,96921.0,96920.0,0.10664569]
[1740163674013,0.3213501,96921.0,96920.0,0.33771169]
[1740163674589,0.0008505,96921.0,96920.0,0.33771169]
[1740163674812,0.0008505,96921.0,96920.0,0.33571169]
[1740163675256,0.0008505,96921.0,96920.0,5.14060069]
[1740163675458,0.0008505,96921.0,96920.0,4.25761169]
[1740163675669,0.0008505,96921.0,96920.0,4.24731169]
[1740163675907,0.0008505,96921.0,96920.0,4.24331169]
[1740163676117,0.0008505,96921.0,96920.0,4.24631169]
[1740163676524,0.0008505,96921.0,96920.0,2.86441169]
[1740163676736,0.0008505,96921.0,96920.0,2.86941169]
[1740163677819,0.0008505,96921.0,96920.0,2.86441169]
[1740163678003,0.0008505,96921.0,96920.0,2.86941169]
[1740163679284,0.0008505,96921.0,96920.0,2.91851169]
[1740163680220,0.0008505,96921.0,96920.0,4.09324085]
[1740163680426,0.0008505,96921.0,96920.0,3.47614085]
[1740163680635,0.0008505,96921.0,96920.0,3.46114085]
[1740163680850,0.0008505,96921.0,96920.0,3.46614085]
[1740163681063,0.0008505,96921.0,96920.0,3.47114085]
[1740163681280,0.0008505,96921.0,96920.0,1.14854569]
[1740163681484,0.0008505,96921.0,96920.0,0.80764569]
[1740163681892,0.0008505,96921.0,96920.0,0.81464569]
[1740163682311,0.0008505,96921.0,96920.0,0.80964569]
[1740163682550,0.0008505,96921.0,96920.0,0.81664569]
[1740163682818,0.0008505,96921.0,96920.0,0.80264569]
[1740163683062,0.0008505,96921.0,96920.0,0.95741169]
[1740163683321,0.0008505,96921.0,96920.0,1.09111169]
[1740163683597,0.0008505,96921.0,96920.0,5.89600069]
[1740163683845,0.0008505,96921.0,96920.0,6.04600069]
[1740163684061,0.0008505,96921.0,96920.0,6.08654154]
[1740163684242,0.0008505,96921.0,96920.0,6.10654154]
[1740163684384,0.0008505,96921.0,96920.0,6.13270611]
[1740163684582,0.0008505,96921.0,96920.0,6.13970611]
[1740163684995,0.0008505,96921.0,96920.0,6.10516526]
[1740163685204,0.0008505,96921.0,96920.0,2.83146569]
[1740163685414,0.0008505,96921.0,96920.0,0.81896569]
[1740163685632,0.0008505,96921.0,96920.0,0.82596569]
[1740163685857,0.0008505,96921.0,96920.0,0.81896569]
[1740163686107,0.0008505,96921.0,96920.0,0.82596569]
[1740163686349,0.3213501,96921.0,96920.0,0.81664569]
[1740163687675,0.3213501,96921.0,96920.0,0.80964569]
[1740163688055,0.3213501,96921.0,96920.0,0.81564569]
[1740163688471,0.3213501,96921.0,96920.0,0.82064569]
[1740163688645,0.4761151,96921.0,96920.0,0.12064569]
[1740163688835,0.3213501,96921.0,96920.0,0.11364569]
[1740163689034,0.4761151,96921.0,96920.0,0.11864569]
[1740163689297,0.3213501,96921.0,96920.0,0.11864569]
[1740163689665,0.4761151,96921.0,96920.0,0.11864569]
[1740163691288,0.3213501,96921.0,96920.0,0.11864569]
[1740163691627,0.4761151,96921.0,96920.0,0.11864569]
[1740163693428,0.3213501,96921.0,96920.0,0.11864569]
[1740163693668,0.4761151,96921.0,96920.0,0.11864569]
[1740163695598,0.3213501,96921.0,96920.0,0.11864569]
[1740163696317,0.3213501,96921.0,96920.0,0.27341169]
[1740163696556,0.3213501,96921.0,96920.0,0.11864569]
[1740163696798,0.3213501,96921.0,96920.0,0.27341169]
[1740163697493,0.3213501,96921.0,96920.0,0.11864569]
[1740163697719,0.3213501,96921.0,96920.0,0.27341169]
[1740163698138,0.3213501,96921.0,96920.0,0.97341169]
[1740163699189,0.3213501,96921.0,96920.0,0.81864569]
[1740163700072,0.4761151,96921.0,96920.0,0.81864569]
[1740163700288,0.3213501,96921.0,96920.0,0.81864569]
[1740163700505,0.4761151,96921.0,96920.0,0.11864569]
[1740163700927,0.3213501,96921.0,96920.0,0.11864569]
[1740163701174,0.3213501,96921.0,96920.0,0.17814569]
[1740163701392,0.0008505,96921.0,96920.0,0.33291169]
[1740163701590,0.3204996,96935.0,96928.0,0.154752]
[1740163701827,0.3204996,96935.0,96929.0,0.10264569]
[1740163702513,0.3204996,96935.0,96929.0,0.10164569]
[1740163702779,0.3204996,96935.0,96929.0,0.80164569]
[1740163703210,0.3204996,96935.0,96929.0,0.80664569]
[1740163703343,0.3204996,96935.0,96929.0,0.82174577]
[1740163703574,0.0008505,96936.0,96935.0,0.154742]
[1740163703788,0.0008505,96936.0,96935.0,0.10264569]
[1740163704000,0.00622586,96936.0,96935.0,0.10264569]
[1740163704210,0.0008505,96936.0,96935.0,0.10264569]
[1740163704768,0.0008505,96936.0,96935.0,0.10664569]
[1740163705601,0.0008505,96936.0,96935.0,0.80664569]
[1740163705818,0.0008505,96936.0,96935.0,0.96138769]
[1740163706208,0.0008505,96936.0,96935.0,0.80664569]
[1740163706430,0.0008505,96936.0,96935.0,0.81164569]
[1740163706790,0.0008505,96936.0,96935.0,0.96638769]
[1740163707791,0.0008505,96936.0,96935.0,0.81164569]
[1740163708323,0.0008505,96936.0,96935.0,0.96638769]
[1740163708566,0.0008505,96936.0,96935.0,0.81164569]
[1740163708767,0.1555915,96936.0,96935.0,0.81164569]
[1740163709435,0.0008505,96936.0,96935.0,0.81164569]
[1740163709583,0.1555915,96936.0,96935.0,0.11164569]
[1740163710295,0.1555915,96936.0,96935.0,0.009]
[1740163710512,0.4760911,96936.0,96935.0,0.009]
[1740163710941,0.3213501,96936.0,96918.0,0.01028855]
[1740163711151,0.163622,96930.0,96920.0,0.7]
[1740163711377,0.163622,96930.0,96921.0,0.10264569]
[1740163711595,0.206336,96929.0,96921.0,0.10264569]
[1740163712014,0.154754,96928.0,96921.0,0.10264569]
[1740163712255,0.163622,96930.0,96922.0,0.7]
[1740163712530,0.163622,96930.0,96923.0,0.10264569]
[1740163712766,0.3213501,96936.0,96923.0,0.10264569]
[1740163712767,0.3213501,96936.0,96935.0,0.154742]
[1740163712999,0.3213501,96936.0,96935.0,0.10264569]
[1740163715235,0.3213501,96936.0,96935.0,0.10464569]
[1740163715852,0.3213501,96936.0,96935.0,0.10564569]
[1740163717221,0.3213501,96936.0,96935.0,0.10464569]
[1740163717373,0.3213501,96936.0,96935.0,0.80464569]
[1740163718002,0.3213501,96936.0,96935.0,0.80264569]
[1740163718368,0.3213501,96936.0,96935.0,0.80464569]
[1740163718570,0.3213501,96936.0,96935.0,0.80564569]
[1740163718770,0.3213501,96936.0,96935.0,0.80764569]
[1740163718974,0.3213501,96936.0,96935.0,0.96138769]
[1740163719415,0.3213501,96936.0,96935.0,0.96438769]
[1740163719650,0.3213501,96936.0,96935.0,0.96038769]
[1740163719903,0.3213501,96936.0,96935.0,1.03478769]
[1740163720148,0.0008505,96936.0,96935.0,1.03578769]
[1740163720630,0.0008505,96936.0,96935.0,5.63298769]
[1740163720868,0.0008505,96936.0,96935.0,5.29088769]
[1740163721102,0.0008505,96936.0,96935.0,4.29278769]
[1740163721349,0.0008505,96936.0,96935.0,1.04348417]
[1740163721644,0.0008505,96936.0,96935.0,2.80788417]
[1740163721837,0.0008505,96936.0,96935.0,2.81288417]
[1740163722378,0.0008505,96936.0,96935.0,1.24748417]
[1740163722574,0.0008505,96936.0,96935.0,1.25448417]
[1740163723210,0.0008505,96936.0,96935.0,1.05648417]
[1740163724032,0.0008505,96936.0,96935.0,0.89404569]
[1740163724266,0.0008505,96936.0,96935.0,0.81664569]
[1740163724474,0.4760911,96936.0,96935.0,0.81664569]
[1740163725622,0.3213501,96936.0,96935.0,0.80964569]
[1740163725950,0.4760911,96936.0,96935.0,0.80564569]
[1740163726099,0.4760911,96936.0,96935.0,0.10764569]
[1740163726309,0.4760911,96936.0,96935.0,0.10464569]
[1740163726511,0.4760911,96936.0,96935.0,0.10564569]
[1740163727498,0.3213501,96936.0,96935.0,0.10564569]
[1740163727700,0.4760911,96936.0,96935.0,0.10564569]
[1740163727945,0.3213501,96936.0,96935.0,0.10564569]
[1740163728166,0.4760911,96936.0,96935.0,0.10564569]
[1740163728715,0.4760911,96936.0,96935.0,0.003]
[1740163732170,0.5215911,96936.0,96935.0,0.003]
[1740163733231,0.4760911,96936.0,96935.0,0.003]
[1740163733440,0.3213501,96936.0,96935.0,0.003]
[1740163733654,0.3213501,96936.0,96935.0,0.10564569]
[1740163734417,0.4760911,96936.0,96935.0,0.10564569]
[1740163734821,0.3213501,96936.0,96935.0,0.10564569]
[1740163735818,0.3213501,96936.0,96935.0,0.10364569]
[1740163736046,0.3213501,96936.0,96935.0,0.10464569]
[1740163736380,0.3213501,96936.0,96935.0,0.10664569]
[1740163736826,0.3213501,96936.0,96935.0,0.10464569]
[1740163737203,0.4760911,96936.0,96935.0,0.10464569]
[1740163737358,0.3213501,96936.0,96935.0,0.10264569]
[1740163738030,0.3213501,96936.0,96935.0,0.10464569]
[1740163738434,0.3213501,96936.0,96935.0,0.10664569]
[1740163738635,0.3213501,96936.0,96935.0,0.10464569]
[1740163739038,0.3213501,96936.0,96935.0,0.10664569]
[1740163739262,0.3213501,96936.0,96935.0,0.10464569]
[1740163740552,0.4760911,96936.0,96935.0,0.10664569]
[1740163740758,0.3213501,96936.0,96935.0,0.10664569]
[1740163741367,0.4760911,96936.0,96935.0,0.10664569]
[1740163741576,0.3213501,96936.0,96935.0,0.10664569]
[1740163748866,0.3213501,96936.0,96935.0,0.80664569]
[1740163749351,0.3213501,96936.0,96935.0,0.88694569]
[1740163750477,0.3213501,96936.0,96935.0,0.10664569]
[1740163753153,0.3213501,96936.0,96935.0,0.26138769]
[1740163753415,0.3213501,96936.0,96935.0,0.96138769]
[1740163753612,0.3213501,96936.0,96935.0,0.80664569]
[1740163754367,0.3213501,96936.0,96935.0,0.80464569]
[1740163754594,0.3213501,96936.0,96935.0,0.80564569]
[1740163755014,0.3213501,96936.0,96935.0,0.80764569]